bitfinex-derivatives/quotes_ETHF0:USTF0_20250627
["timestamp","ask_amount","ask_price","bid_price","bid_amount"]
[1751029224309,2.81294,2429.5,2429.4,7.043]
[1751029224608,2.81294,2429.5,2429.4,33.089]
[1751029224806,0.82299,2429.4,2429.2,0.82303]
[1751029225007,0.82299,2429.4,2429.3,26.045]
[1751029225199,2.81296,2429.5,2429.3,26.86799]
[1751029225400,0.82297,2429.4,2429.3,26.86799]
[1751029225805,1.86397,2429.4,2429.3,26.86799]
[1751029226110,1.86397,2429.4,2429.0,42.892]
[1751029226412,5.72095422,2429.3,2429.2,0.82304]
[1751029226608,7.67776422,2429.3,2429.2,26.86604]
[1751029226812,1.1338,2429.3,2429.2,26.86604]
[1751029227121,3.1238,2429.3,2429.2,26.86604]
[1751029227814,0.82304,2429.2,2429.1,7.2042]
[1751029228017,2.24384,2429.2,2429.1,33.2462]
[1751029228515,6.3316,2429.3,2429.1,33.2462]
[1751029228717,0.82304,2429.2,2429.1,7.2042]
[1751029228917,2.24384,2429.2,2429.1,33.2442]
[1751029229310,2.24384,2429.2,2429.1,29.9508]
[1751029229511,2.24384,2429.2,2429.1,26.04]
[1751029230010,0.82307,2429.1,2429.0,1.0292]
[1751029230211,2.15417,2429.1,2429.0,1.0292]
[1751029230906,2.15417,2429.1,2429.0,27.0692]
[1751029231113,2.15417,2429.1,2427.9,0.82345]
[1751029231114,2.05782,2429.0,2427.9,0.82345]
[1751029231313,2.05782,2429.0,2428.0,26.039]
[1751029231314,0.82341,2428.1,2428.0,26.039]
[1751029231609,0.82345,2428.0,2427.8,0.82351]
[1751029231804,4.28343,2428.1,2427.9,26.039]
[1751029232009,2.1289,2428.1,2427.9,26.039]
[1751029232206,3.2078,2428.5,2427.9,34.96775422]
[1751029232412,3.2078,2428.5,2428.0,1.4095]
[1751029232610,0.82322,2428.7,2428.1,7.025]
[1751029232813,4.2472,2428.8,2428.2,29.2458]
[1751029233008,5.07038,2428.8,2428.5,0.82324]
[1751029233212,4.2472,2428.8,2428.5,26.038]
[1751029233412,4.2472,2428.8,2428.6,0.82322]
[1751029233615,5.07037,2428.8,2428.6,0.82322]
[1751029233808,1.99,2428.7,2428.6,0.82322]
[1751029234719,4.2472,2428.8,2428.7,0.82321]
[1751029235016,3.2078,2429.2,2428.7,7.026]
[1751029235221,1.99,2428.8,2428.7,7.84921]
[1751029235420,1.99,2428.8,2428.7,33.88921]
[1751029236016,3.32309178,2428.8,2428.7,33.88921]
[1751029236624,3.32309178,2428.8,2428.7,38.88921]
[1751029237626,3.32309178,2428.8,2428.7,79.68921]
[1751029238515,1.99,2428.8,2428.7,79.68921]
[1751029238924,1.11789,2428.8,2428.7,79.68921]
[1751029239426,1.0674,2429.4,2429.3,0.82301]
[1751029239628,1.33372596,2429.4,2429.3,26.037]
[1751029239826,1.33372596,2429.4,2429.3,26.86001]
[1751029240730,4.56133796,2429.4,2429.3,26.86001]
[1751029241224,1.33372596,2429.4,2429.3,26.86001]
[1751029242729,3.75539082,2429.4,2429.3,26.86001]
[1751029244630,1.33372596,2429.4,2429.3,26.86001]
[1751029246324,1.33372596,2429.4,2429.3,33.87801]
[1751029247835,1.33372596,2429.4,2429.3,34.97401]
[1751029249436,2.1108,2429.8,2429.7,0.82287]
[1751029249626,3.43713722,2429.8,2429.7,33.87287]
[1751029250131,2.36443722,2429.8,2429.7,33.87287]
[1751029250337,1.32633722,2429.8,2429.7,33.87287]
[1751029253738,1.32633722,2429.8,2429.7,0.82287]
[1751029253945,10.46339144,2429.8,2429.7,26.019]
[1751029254241,11.28624144,2429.8,2429.7,26.019]
[1751029254443,10.46339144,2429.8,2429.7,26.84187]
[1751029254644,5.56527722,2429.8,2429.7,26.019]
[1751029254845,6.14283722,2429.8,2429.7,26.84187]
[1751029255145,6.96567722,2429.8,2429.7,26.84187]
[1751029255544,6.14283722,2429.8,2429.7,26.84187]
[1751029255744,0.82287,2429.7,2429.6,2.8811]
[1751029255947,3.54960722,2429.7,2429.6,28.8991]
[1751029256145,9.27056144,2429.7,2429.6,2.8811]
[1751029256347,9.27056144,2429.7,2429.6,28.8971]
[1751029256542,9.27056144,2429.7,2429.6,29.72]
[1751029256844,9.27056144,2429.7,2429.6,29.719]
[1751029257043,11.26056144,2429.7,2429.6,29.719]
[1751029257342,11.26056144,2429.7,2429.6,3.704]
[1751029257545,3.31633722,2429.7,2429.6,29.719]
[1751029257844,1.99,2429.7,2429.6,29.719]
[1751029258947,3.3135124,2429.7,2429.6,29.719]
[1751029259150,1.99,2429.7,2429.6,29.719]
[1751029260442,1.99,2429.7,2429.6,31.1464]
[1751029261548,1.99,2429.7,2429.6,29.719]
[1751029261743,1.99,2429.7,2429.6,2.8811]
[1751029261950,4.13622091,2429.7,2429.6,35.9141]
[1751029262452,5.48012091,2429.7,2429.6,35.9141]
[1751029262653,5.48012091,2429.7,2429.6,2.8811]
[1751029262853,5.48012091,2429.7,2429.6,35.8991]
[1751029263147,5.48012091,2429.7,2429.6,35.8981]
[1751029263346,5.48012091,2429.7,2429.6,2.8811]
[1751029263649,5.48012091,2429.7,2429.6,28.8881]
[1751029263650,8.68792091,2429.7,2429.6,28.8881]
[1751029263840,13.68792091,2429.7,2429.6,2.8811]
[1751029264045,13.68792091,2429.7,2429.6,28.8881]
[1751029264446,7.86505091,2429.7,2429.6,28.8881]
[1751029264652,8.68792091,2429.7,2429.6,28.8881]
[1751029265246,8.68792091,2429.7,2429.6,29.711]
[1751029265446,7.86505091,2429.7,2429.6,29.711]
[1751029267150,3.31335091,2429.7,2429.6,29.711]
[1751029267456,1.99,2429.7,2429.6,29.711]
[1751029267955,1.99,2429.7,2429.6,30.7696]
[1751029268259,3.31337867,2429.7,2429.6,29.711]
[1751029269251,7.34404867,2429.7,2429.6,2.8811]
[1751029269554,19.90817867,2429.7,2428.3,4.03112]
[1751029269856,0.82323,2428.7,2428.4,26.82431]
[1751029270057,5.72095422,2428.8,2428.4,26.82431]
[1751029270358,1.0422,2428.7,2428.5,26.0]
[1751029270954,3.2078,2428.9,2428.5,26.82326]
[1751029270955,1.32315982,2428.6,2428.5,26.82326]
[1751029271166,1.0422,2429.0,2428.8,0.82316]
[1751029271457,1.32297916,2428.9,2428.8,26.82217]
[1751029271658,2.14611916,2428.9,2428.8,25.999]
[1751029272048,2.34311916,2428.9,2428.8,25.999]
[1751029272448,1.51997916,2428.9,2428.8,26.82217]
[1751029273658,1.51997916,2428.9,2428.8,28.21477]
[1751029274653,1.51997916,2428.9,2428.8,26.82217]
[1751029275562,0.197,2428.9,2428.8,26.82217]
[1751029276662,0.197,2428.9,2428.8,28.23117]
[1751029276857,0.197,2428.9,2428.8,0.82317]
[1751029277059,0.197,2428.9,2428.8,33.83217]
[1751029279965,1.02014,2428.9,2428.8,33.009]
[1751029280164,1.02014,2428.9,2428.8,25.998]
[1751029280558,0.197,2428.9,2428.8,26.82117]
[1751029283669,1.02014,2428.9,2428.8,26.82117]
[1751029283862,0.197,2428.9,2428.8,26.82117]
[1751029285369,1.02014,2428.9,2428.8,26.82117]
[1751029285761,0.197,2428.9,2428.8,26.82117]
[1751029288481,1.02014,2428.9,2428.8,26.82117]
[1751029289179,0.197,2428.9,2428.8,26.82117]
[1751029289478,1.02014,2428.9,2428.8,25.998]
[1751029290772,1.02014,2428.9,2428.8,26.82117]
[1751029291184,1.02014,2428.9,2428.8,25.998]
[1751029292383,0.197,2428.9,2428.8,26.82117]
[1751029293784,1.02014,2428.9,2428.8,26.82117]
[1751029294091,2.34389236,2428.9,2428.8,26.82117]
[1751029294589,1.52075236,2428.9,2428.7,11.12708]
[1751029294889,1.02017,2428.9,2428.8,26.80817]
[1751029295089,2.34375379,2428.9,2428.8,26.80817]
[1751029295286,6.14109847,2428.9,2428.8,26.80817]
[1751029295486,6.14106847,2428.9,2428.8,26.80817]
[1751029295888,1.52058379,2428.9,2428.8,26.80817]
[1751029296490,1.52058379,2428.9,2428.8,28.13527]
[1751029301398,1.52058379,2428.9,2428.8,33.79417]
[1751029302002,0.82317,2428.8,2428.7,29.4707]
[1751029302197,8.41799847,2428.8,2428.7,29.4707]
[1751029302390,8.41799847,2428.8,2428.7,26.1768]
[1751029302595,8.41799847,2428.8,2428.7,0.2008]
[1751029302804,8.41799847,2428.8,2428.7,26.1768]
[1751029303696,8.41799847,2428.8,2428.7,27.00001]
[1751029304003,7.59482847,2428.8,2428.7,27.00001]
[1751029304301,8.41799847,2428.8,2428.7,27.00001]
[1751029304496,4.62065379,2428.8,2428.7,27.00001]
[1751029304702,8.41799847,2428.8,2428.7,27.00001]
[1751029305595,8.41799847,2428.8,2428.7,0.2008]
[1751029305795,9.53219847,2428.8,2428.7,26.1728]
[1751029306204,11.52219847,2428.8,2428.7,26.1728]
[1751029306406,11.52219847,2428.8,2428.7,0.2008]
[1751029307306,16.52219847,2428.8,2428.7,0.2008]
[1751029307505,11.52219847,2428.8,2428.7,0.2008]
[1751029307697,16.52219847,2428.8,2428.7,0.2008]
[1751029308410,11.52219847,2428.8,2428.7,0.2008]
[1751029309001,16.52219847,2428.8,2428.7,0.2008]
[1751029309198,0.82321,2428.7,2428.6,6.0433]
[1751029309400,5.97370534,2428.7,2428.6,6.0433]
[1751029309600,0.82331,2428.4,2428.3,6.993]
[1751029309807,5.94423847,2428.4,2428.3,32.962]
[1751029309999,5.94423847,2428.4,2428.3,33.78534]
[1751029311109,0.82334,2428.3,2428.2,2.1428]
[1751029311306,2.14692379,2428.3,2428.2,28.93318]
[1751029311606,2.14692379,2428.3,2428.2,28.1098]
[1751029311794,2.14692379,2428.3,2428.2,28.93318]
[1751029314507,2.14692379,2428.3,2428.2,28.1098]
[1751029315110,2.14692379,2428.3,2428.2,2.1428]
[1751029315306,2.14692379,2428.3,2428.2,28.1088]
[1751029315504,2.14692379,2428.3,2428.2,28.93218]
[1751029316610,0.82341,2428.1,2428.0,26.4544]
[1751029316803,7.82855468,2428.1,2428.0,26.4544]
[1751029317109,9.15213847,2428.1,2428.0,25.961]
[1751029317702,8.32872847,2428.1,2428.0,25.96]
[1751029318006,0.82355,2427.7,2427.6,3.4215]
[1751029318199,7.17891451,2427.7,2427.2,7.81869]
[1751029318400,0.82392,2426.6,2426.5,0.29194057]
[1751029318597,5.11912484,2426.6,2425.6,3.2078]
[1751029318815,3.79734468,2426.2,2425.9,3.2078]
[1751029319003,1.32178016,2426.1,2425.9,3.2078]
[1751029319313,3.4711,2426.5,2425.9,3.49022513]
[1751029319604,1.99,2426.1,2426.0,34.27362]
[1751029319809,3.79734468,2426.4,2426.1,0.82408]
[1751029320005,3.79734468,2426.4,2426.0,34.899]
[1751029320205,4.2463,2426.5,2426.0,34.899]
[1751029320408,3.2078,2426.9,2426.2,3.2078]
[1751029320710,1.31852497,2426.8,2426.5,0.82393]
[1751029320918,3.2078,2426.9,2426.5,0.82393]
[1751029320919,1.3185404,2426.7,2426.5,6.997]
[1751029321103,0.8239,2426.7,2426.3,0.824]
[1751029321304,1.234,2426.7,2426.4,32.963]
[1751029321509,0.4101,2426.7,2426.5,6.997]
[1751029322112,0.1238,2426.6,2426.5,7.82095]
[1751029322304,0.1238,2426.6,2426.5,9.18295]
[1751029322708,0.1238,2426.6,2426.2,45.0707]
[1751029322916,0.1238,2426.6,2426.3,32.962]
[1751029323207,0.1238,2426.6,2426.0,3.7023]
[1751029323411,0.1238,2426.6,2426.5,0.82395]
[1751029323607,5.2949,2427.2,2426.5,32.963]
[1751029323806,4.2361,2427.2,2426.6,1.4369]
[1751029324111,1.99,2426.9,2426.7,41.93]
[1751029324309,1.99,2426.9,2426.8,28.22875]
[1751029324806,3.2078,2427.8,2426.9,2.05955]
[1751029325010,3.21997628,2428.2,2427.6,4.03138]
[1751029325011,1.31269966,2427.7,2427.6,4.03138]
[1751029325312,1.31269966,2427.7,2427.6,36.97738]
[1751029325513,3.2078,2428.1,2428.0,0.82345]
[1751029325707,1.31261387,2428.1,2428.0,7.80145]
[1751029326213,1.31261387,2428.1,2428.0,9.23835]
[1751029326405,2.41941559,2428.5,2428.0,20.72004188]
[1751029326612,2.41941559,2428.7,2428.6,0.82324]
[1751029326912,2.41941559,2428.8,2428.7,0.42169568]
[1751029327114,2.41941559,2429.0,2428.9,0.82314]
[1751029327309,2.41941559,2429.2,2429.1,0.82307]
[1751029327614,2.41941559,2429.3,2429.2,0.82304]
[1751029327906,2.41941559,2429.4,2429.3,0.823]
[1751029328214,15.34828672,2429.6,2429.3,2.2654]
[1751029328514,2.41941559,2429.6,2429.3,1.4424]
[1751029328812,3.2078,2429.8,2429.3,1.4424]
[1751029329010,3.2078,2429.8,2429.4,26.003]
[1751029329209,3.2078,2429.8,2429.5,8.4184]
[1751029329514,3.2078,2429.8,2429.5,8.57228886]
[1751029329715,3.2078,2429.8,2429.6,0.8229]
[1751029329921,5.62721559,2430.7,2429.7,25.996]
[1751029330218,0.82265,2430.4,2430.1,3.2078]
[1751029330407,0.82267,2430.3,2430.2,6.976]
[1751029330814,11.88414188,2430.7,2430.2,6.976]
[1751029331010,0.82267,2430.3,2430.2,6.976]
[1751029331214,0.82265,2430.4,2430.2,6.976]
[1751029331413,11.88414188,2430.7,2430.2,6.976]
[1751029331714,11.33549188,2430.7,2430.2,6.976]
[1751029331906,0.82257,2430.6,2430.2,7.79868]
[1751029332112,4.03035,2430.7,2430.2,6.976]
[1751029332312,4.03034,2430.7,2430.4,0.82261]
[1751029332514,3.2078,2430.7,2430.4,26.001]
[1751029332714,3.2078,2431.1,2430.5,3.2078]
[1751029332914,3.2078,2431.1,2430.6,6.974]
[1751029332915,0.82252,2430.8,2430.6,6.974]
[1751029333111,3.2078,2431.4,2430.7,25.991]
[1751029333317,3.2078,2431.4,2431.0,3.2078]
[1751029333516,3.2078,2431.4,2430.8,1.3481]
[1751029333517,0.82246,2430.9,2430.8,1.3481]
[1751029333714,0.8225,2430.8,2430.7,6.974]
[1751029333917,10.51294188,2431.4,2430.7,11.00433]
[1751029334114,7.30514188,2431.7,2431.3,3.2078]
[1751029334322,0.82228,2431.5,2431.4,6.974]
[1751029334517,0.82221,2431.7,2431.4,6.974]
[1751029334817,0.82217,2431.8,2431.6,3.2078]
[1751029335115,0.82217,2431.8,2431.7,27.4461]
[1751029335316,0.82216,2431.8,2431.7,27.4461]
[1751029335520,2.81216,2431.8,2431.7,27.4461]
[1751029336120,1.99,2431.8,2431.7,27.4461]
[1751029336313,2.81216,2431.8,2431.7,27.4461]
[1751029336515,1.99,2431.8,2431.7,27.4461]
[1751029337313,3.2078,2432.5,2431.9,0.82212]
[1751029337624,3.2078,2432.5,2431.7,3.2078]
[1751029337625,0.82219,2431.8,2431.7,3.2078]
[1751029337825,0.82219,2431.8,2431.7,36.2488]
[1751029338021,0.82219,2431.8,2431.7,3.2078]
[1751029338221,2.81219,2431.8,2431.7,36.2468]
[1751029338427,2.81216,2431.8,2431.7,36.2468]
[1751029338818,2.81216,2431.8,2431.7,41.2468]
[1751029339019,1.99,2431.8,2431.7,41.2468]
[1751029339925,2.81216,2431.8,2431.7,36.2428]
[1751029340127,0.82223,2431.6,2431.5,51.883]
[1751029340425,0.82223,2431.6,2431.5,84.917]
[1751029340621,0.82223,2431.6,2431.5,82.428]
[1751029341126,0.82223,2431.6,2431.5,82.427]
[1751029341325,0.82223,2431.6,2431.5,49.394]
[1751029341524,0.82223,2431.6,2431.5,82.422]
[1751029342021,0.82223,2431.6,2431.5,82.417]
[1751029342327,2.81223,2431.6,2431.5,82.417]
[1751029343435,2.81223,2431.6,2431.5,82.397]
[1751029343728,0.82236,2431.2,2431.1,3.2078]
[1751029343919,0.82236,2431.2,2431.1,36.2048]
[1751029344526,10.51294188,2431.3,2431.1,6.968]
[1751029344726,0.82236,2431.2,2431.1,33.007]
[1751029344922,7.30514188,2431.5,2431.1,33.007]
[1751029345127,3.2078,2431.6,2431.2,0.82236]
[1751029345128,1.99,2431.3,2431.2,0.82236]
[1751029345424,2.81233,2431.3,2431.2,0.82236]
[1751029345629,2.81233,2431.3,2431.1,36.2148]
[1751029345824,0.82236,2431.2,2431.1,36.2148]
[1751029346231,2.81235,2431.3,2431.1,37.03718]
[1751029346432,0.82236,2431.2,2431.1,37.03718]
[1751029346618,1.99,2431.3,2431.1,37.03718]
[1751029346820,0.82236,2431.2,2431.1,36.2148]
[1751029347019,0.82246,2430.9,2430.8,3.2078]
[1751029347225,0.82246,2430.9,2430.8,36.2258]
[1751029347927,0.82246,2430.9,2430.8,37.0483]
[1751029348120,0.82246,2430.9,2430.8,36.2258]
[1751029348326,0.82246,2430.9,2430.8,3.2078]
[1751029348635,0.82246,2430.9,2430.8,36.2128]
[1751029348835,2.81246,2430.9,2430.8,36.2128]
[1751029349032,2.81246,2430.9,2430.8,36.2148]
[1751029349230,1.99,2430.9,2430.8,37.0363]
[1751029350530,2.81246,2430.9,2430.8,36.2138]
[1751029350944,2.81246,2430.9,2430.8,36.2058]
[1751029351441,1.99,2430.9,2430.8,37.0283]
[1751029351628,1.99,2430.9,2430.8,38.4316]
[1751029355037,1.99,2430.9,2430.8,37.0223]
[1751029355429,1.99,2430.9,2430.8,4.0303]
[1751029355624,2.81246,2430.9,2430.8,3.2078]
[1751029355841,0.8225,2430.8,2430.7,0.4955]
[1751029356042,0.8225,2430.8,2430.7,33.4865]
[1751029356335,2.13149398,2430.8,2430.7,33.4865]
[1751029356536,3.53839398,2430.8,2430.7,0.4955]
[1751029356733,3.53839398,2430.8,2430.7,33.4905]
[1751029357132,5.52839398,2430.8,2430.7,33.4905]
[1751029357736,4.70589398,2430.8,2430.7,34.31303]
[1751029357935,3.29899398,2430.8,2430.7,34.31303]
[1751029360241,5.71840957,2430.8,2430.7,34.31303]
[1751029360535,5.71840957,2430.8,2430.7,33.81753]
[1751029360737,3.29899398,2430.8,2430.7,33.81753]
[1751029361842,3.29899398,2430.8,2430.7,0.82253]
[1751029362137,6.51897026,2430.8,2430.7,33.78253]
[1751029362643,3.29899398,2430.8,2430.7,33.78253]
[1751029363035,3.29899398,2430.8,2430.7,40.12853]
[1751029363638,0.52150785,2430.8,2430.7,40.12853]
[1751029364638,2.93932264,2430.8,2430.7,40.12853]
[1751029364838,0.52150785,2430.8,2430.7,40.12853]
[1751029365441,0.52150785,2430.8,2430.7,0.82253]
[1751029365647,0.52150785,2430.8,2430.7,33.76353]
[1751029365841,0.52150785,2430.8,2430.5,3.3034]
[1751029366042,2.41796904,2430.6,2430.5,4.12599]
[1751029366337,2.41796904,2430.6,2430.5,37.13899]
[1751029366538,2.41796904,2430.6,2430.5,77.93899]
[1751029366944,2.41796904,2430.7,2430.6,0.82256]
[1751029367338,2.93947689,2430.8,2430.7,0.82253]
[1751029367534,2.93947689,2430.8,2430.7,26.83753]
[1751029367938,1.34400785,2430.8,2430.7,26.015]
[1751029368143,0.52150785,2430.8,2430.7,26.83753]
[1751029368444,0.52150785,2430.8,2430.7,26.015]
[1751029368644,2.80352785,2430.8,2430.7,33.012]
[1751029368943,2.28203,2430.8,2430.7,33.004]
[1751029369544,5.34863,2430.8,2430.7,33.004]
[1751029370140,5.3486,2430.8,2430.7,33.0]
[1751029370346,5.3486,2430.8,2430.7,30.53170836]
[1751029370540,9.5261,2430.8,2430.5,3.3037]
[1751029370748,3.23005384,2430.6,2430.5,30.11328]
[1751029371047,5.10510384,2430.7,2430.5,30.11328]
[1751029371243,2.27806,2430.6,2430.5,30.01738]
[1751029371443,1.4555,2430.6,2430.5,30.01738]
[1751029371945,4.68555384,2430.6,2430.5,30.01738]
[1751029373142,4.68555384,2430.6,2430.5,29.1948]
[1751029373348,0.82264,2430.4,2430.3,7.003]
[1751029373540,0.82267,2430.3,2430.2,59.5728]
[1751029373741,1.3859,2430.3,2430.2,3.2078]
[1751029373950,1.9915,2430.4,2430.3,0.82267]
[1751029374248,5.22101546,2430.4,2430.3,0.82267]
[1751029374549,3.22951546,2430.4,2430.3,0.82267]
[1751029374751,3.22951546,2430.5,2430.4,0.82263]
[1751029374953,3.22951546,2430.5,2430.4,26.88863]
[1751029375152,5.22101546,2430.5,2430.4,26.88863]
[1751029375341,1.9915,2430.5,2430.4,26.88863]
[1751029375541,3.27814776,2430.5,2430.4,26.88863]
[1751029375944,5.7003908,2430.5,2430.4,26.88863]
[1751029377251,3.27814776,2430.5,2430.4,26.88863]
[1751029377644,3.27814776,2430.5,2430.4,31.88863]
[1751029377840,3.27814776,2430.5,2430.4,76.25763]
[1751029378045,1.28664776,2430.5,2430.4,83.26763]
[1751029378344,3.27814776,2430.5,2430.4,57.19563]
[1751029378549,3.27814776,2430.5,2430.4,124.07263]
[1751029378850,6.5230108,2430.5,2430.4,33.076]
[1751029379242,4.10076776,2430.5,2430.4,7.004]
[1751029379453,7.8569108,2430.5,2430.4,33.083]
[1751029380047,0.82266,2430.4,2430.2,3.2078]
[1751029380244,3.44321776,2430.3,2430.2,3.2078]
[1751029380443,5.8654608,2430.3,2430.2,3.2078]
[1751029380853,7.8569608,2430.3,2430.2,36.2778]
[1751029381154,7.8569608,2430.3,2430.0,0.0962]
[1751029381155,0.82273,2430.1,2430.0,7.1002]
[1751029381443,2.10937776,2430.1,2430.0,33.1692]
[1751029381752,10.33889322,2430.1,2430.0,33.1692]
[1751029381949,11.75529322,2430.1,2430.0,0.0962]
[1751029382144,8.52577776,2430.1,2430.0,0.0962]
[1751029382344,10.51727776,2430.1,2430.0,0.0962]
[1751029382751,9.69454776,2430.1,2430.0,0.91897]
[1751029382946,10.51727776,2430.1,2430.0,0.0962]
[1751029383149,12.93368414,2430.1,2430.0,0.0962]
[1751029383343,5.51727776,2430.1,2430.0,0.0962]
[1751029384249,4.69454776,2430.1,2430.0,0.91897]
[1751029384450,4.69454776,2430.1,2430.0,0.0962]
[1751029384841,4.69454776,2430.1,2430.0,0.91897]
[1751029385243,3.27814776,2430.1,2430.0,0.91897]
[1751029386160,1.9915,2430.1,2430.0,2.30027]
[1751029386660,1.9915,2430.1,2430.0,0.0962]
[1751029386856,2.81423,2430.1,2430.0,33.1972]
[1751029387050,1.9915,2430.1,2430.0,33.1972]
[1751029388249,1.9915,2430.1,2430.0,34.01997]
[1751029389755,1.9915,2430.1,2430.0,33.1972]
[1751029390050,4.25533,2430.1,2430.0,33.1972]
[1751029390253,3.4326,2430.1,2430.0,34.01997]
[1751029390452,1.9915,2430.1,2430.0,34.01997]
[1751029390651,1.9915,2430.1,2430.0,33.99197]
[1751029391854,1.9915,2430.1,2430.0,0.91897]
[1751029392055,1.9915,2430.1,2430.0,33.97297]
[1751029393953,1.9915,2430.1,2430.0,41.27811188]
[1751029394153,1.9915,2430.1,2430.0,43.66261188]
[1751029396255,1.9915,2430.1,2430.0,48.66261188]
[1751029396457,1.9915,2430.1,2430.0,98.03961188]
[1751029396664,1.9915,2430.1,2430.0,138.83961188]
[1751029397460,1.9915,2430.1,2430.0,133.83961188]
[1751029400668,1.9915,2430.1,2430.0,134.91651188]
[1751029400975,1.9915,2430.1,2430.0,106.49411188]
[1751029401159,1.9915,2430.1,2430.0,139.54511188]
[1751029401359,1.9915,2430.1,2430.0,140.98291188]
[1751029402360,1.9915,2430.1,2430.0,139.53811188]
[1751029402972,1.9915,2430.1,2430.0,140.90741188]
[1751029404363,1.9915,2430.1,2430.0,142.73191188]
[1751029406167,1.13112,2430.1,2430.0,141.75191188]
[1751029406474,1e-05,2430.1,2430.0,136.75191188]
[1751029407467,1e-05,2430.1,2430.0,103.72191188]
[1751029407669,1e-05,2430.1,2430.0,136.73191188]
[1751029409365,1e-05,2430.1,2430.0,141.73191188]
[1751029409766,1e-05,2430.1,2430.0,142.71191188]
[1751029409968,1e-05,2430.1,2430.0,86.50477]
[1751029411677,1e-05,2430.1,2430.0,87.90777]
[1751029411974,1e-05,2430.1,2430.0,128.70777]
[1751029412272,1e-05,2430.1,2430.0,101.34777]
[1751029412577,1e-05,2430.1,2430.0,94.30377]
[1751029412874,1e-05,2430.1,2430.0,127.20757]
[1751029415980,1e-05,2430.1,2430.0,101.25157]
[1751029416281,1e-05,2430.1,2430.0,127.20657]
[1751029417272,1e-05,2430.1,2430.0,129.55017]
[1751029418380,1e-05,2430.1,2430.0,130.47487]
[1751029419778,1e-05,2430.1,2430.0,129.05967]
[1751029420177,1e-05,2430.1,2430.0,86.34357]
[1751029420376,1e-05,2430.1,2430.0,93.64871188]
[1751029420779,1e-05,2430.1,2430.0,134.44871188]
[1751029421077,1e-05,2430.1,2430.0,135.87641188]
[1751029421479,1e-05,2430.1,2430.0,141.85641188]
[1751029424769,1e-05,2430.1,2430.0,146.85641188]
[1751029425374,1.0842,2430.8,2430.7,0.82253]
[1751029425574,2.36002051,2430.8,2430.7,33.75653]
[1751029425986,2.46302051,2430.8,2430.7,33.75653]
[1751029426786,0.55563051,2430.8,2430.7,33.75653]
[1751029426978,2.41640638,2431.4,2430.9,2.05608]
[1751029427175,3.374,2431.6,2431.5,0.82226]
[1751029427375,3.374,2431.6,2431.5,33.75526]
[1751029427574,10.261,2431.6,2431.5,33.75526]
[1751029428386,10.261,2431.6,2431.5,26.77426]
[1751029429277,0.82229,2431.4,2431.3,3.2078]
[1751029429479,0.82228,2431.5,2431.3,29.98313]
[1751029429678,8.70984188,2431.4,2431.1,6.98]
[1751029429981,1.4047,2431.4,2431.3,0.82233]
[1751029430183,6.4047,2431.4,2431.3,0.82233]
[1751029430486,6.4047,2431.4,2431.3,26.77533]
[1751029430994,7.22699,2431.4,2431.3,26.77533]
[1751029431186,6.4047,2431.4,2431.3,26.77533]
[1751029432586,7.22699,2431.4,2431.3,26.77533]
[1751029432782,7.22699,2431.4,2431.3,25.953]
[1751029432980,6.4047,2431.4,2431.2,0.82235]
[1751029433179,6.4047,2431.4,2431.3,25.948]
[1751029433496,6.4047,2431.4,2431.1,0.82238]
[1751029433681,7.30514188,2431.3,2431.2,25.948]
[1751029433881,9.57679188,2431.3,2431.2,26.77036]
[1751029434085,14.57679188,2431.3,2431.2,26.77036]
[1751029434476,14.57679188,2431.3,2431.2,25.948]
[1751029434883,14.57679188,2431.3,2431.2,26.77036]
[1751029435084,7.27165,2431.3,2431.2,26.77036]
[1751029435488,7.27165,2431.3,2431.2,25.948]
[1751029435790,0.82243,2431.1,2431.0,25.948]
[1751029435993,10.51294188,2431.2,2430.8,3.2078]
[1751029436289,0.82246,2430.9,2430.8,3.2078]
[1751029436588,0.82246,2430.9,2430.8,29.1548]
[1751029436783,0.8225,2430.8,2430.7,6.98]
[1751029436982,0.82251,2430.8,2430.6,0.82256]
[1751029437183,2.15593,2430.7,2430.6,0.82256]
[1751029437386,1.3334,2430.7,2430.6,33.74956]
[1751029437792,1.3334,2430.7,2430.6,0.82256]
[1751029437988,1.3334,2430.7,2430.6,33.75056]
[1751029438283,1.997,2430.9,2430.6,33.75056]
[1751029438284,1.997,2430.9,2430.8,0.8225]
[1751029438585,0.82246,2430.9,2430.8,25.948]
[1751029438787,3.52704885,2430.9,2430.8,26.7705]
[1751029439478,3.52704885,2430.9,2430.8,0.8225]
[1751029439479,2.70458885,2430.9,2430.8,0.8225]
[1751029439684,2.70458885,2430.9,2430.8,33.7505]
[1751029440284,3.52704885,2430.9,2430.8,32.928]
[1751029440583,1.37118885,2430.9,2430.8,33.7505]
[1751029440777,1.37118885,2430.9,2430.8,36.9583]
[1751029441380,0.1036,2430.9,2430.8,36.9583]
[1751029441986,0.1036,2430.9,2430.8,38.3712]
[1751029442391,1e-05,2430.9,2430.8,38.3712]
[1751029442589,1e-05,2430.9,2430.8,43.3712]
[1751029443485,1e-05,2430.9,2430.8,38.3712]
[1751029445188,2.41640638,2431.9,2431.1,2.05592]
[1751029445393,2.41640638,2431.9,2431.7,4.02999]
[1751029445394,1.2669198,2431.8,2431.7,4.02999]
[1751029445583,1.2669198,2431.8,2431.7,36.95499]
[1751029445780,3.1603198,2431.8,2431.7,36.95499]
[1751029446290,3.1603198,2431.8,2431.7,40.74095947]
[1751029446487,1.8934,2431.8,2431.7,8.70945947]
[1751029446695,1.8934,2431.8,2431.7,36.1288]
[1751029446888,7.71556,2431.8,2431.7,25.942]